lending/lending_fUSD_20240731
["ID","MTS","AMOUNT","RATE_DAILY","PERIOD"]
[333746633,1722437451188,-163.4876926,0.000109,2]
[333746634,1722437451197,-163.4876926,0.000109,2]
[333746635,1722437451207,-500.0,0.00010903,2]
[333746636,1722437451215,-150.0,0.00010908,2]
[333746637,1722437451224,-867.04223677,0.00010909,2]
[333746638,1722437451233,-384.0101415,0.00010909,2]
[333746639,1722437451245,-500.0,0.00010912,2]
[333746641,1722437451255,-150.0,0.00010913,2]
[333746642,1722437451264,-867.04223677,0.0001092,2]
[333746644,1722437451273,-384.0101415,0.0001092,2]
[333746646,1722437451283,-500.0,0.00010921,2]
[333746648,1722437451292,-150.0,0.00010924,2]
[333746650,1722437451301,-500.0,0.0001093,2]
[333746652,1722437451311,-867.04223677,0.00010931,2]
[333746654,1722437451320,-384.0101415,0.00010931,2]
[333746656,1722437451330,-500.0,0.00010938,2]
[333746658,1722437451339,-150.0,0.00010939,2]
[333746660,1722437451349,-867.04223677,0.00010942,2]
[333746662,1722437451358,-384.0101415,0.00010942,2]
[333746664,1722437451367,-500.0,0.00010947,2]
[333746666,1722437451377,-867.04223677,0.00010953,2]
[333746668,1722437451386,-384.0101415,0.00010953,2]
[333746670,1722437451397,-150.0,0.00010955,2]
[333746672,1722437451406,-500.0,0.00010956,2]
[333746674,1722437451415,-200.0,0.00010959,2]
[333746676,1722437451425,-150.0,0.00010959,2]
[333746678,1722437451434,-250.0,0.00010959,2]
[333746680,1722437451443,-867.04223677,0.00010964,2]
[333746682,1722437451452,-384.0101415,0.00010964,2]
[333746684,1722437451462,-500.0,0.00010965,2]
[333746686,1722437451472,-150.0,0.00010971,2]
[333746688,1722437451484,-2547.4571539,0.00010972,2]
[333746690,1722437451493,-500.0,0.00010974,2]
[333746692,1722437451502,-867.04223677,0.00010975,2]
[333746694,1722437451512,-384.0101415,0.00010975,2]
[333746696,1722437451523,-152.30416237,0.00010977,2]
[333746698,1722437451533,-4146.23536028,0.00010979,2]
[333746700,1722437451542,-1581.0,0.0001098,2]
[333746702,1722437451552,-1925.0,0.0001098,2]
[333746704,1722437451561,-921.345,0.0001098,2]
[333746706,1722437451571,-621.0,0.0001098,2]
[333746708,1722437451581,-811.0,0.0001098,2]
[333746710,1722437451591,-446.0,0.0001098,2]
[333746712,1722437451600,-450.0,0.0001098,2]
[333746714,1722437451610,-1892.0,0.0001098,2]
[333746716,1722437451619,-438.655,0.0001098,2]
[333746718,1722437451629,-150.384,0.0001098,2]
[333746720,1722437451638,-3286.0,0.0001098,2]
[333746722,1722437451649,-1370.0,0.0001098,2]
[333746724,1722437451659,-157.364,0.0001098,2]
[333746726,1722437451668,-5737.377,0.0001098,2]
[333746728,1722437451677,-153.0,0.0001098,2]
[333746730,1722437451687,-38392.0,0.0001098,2]
[333746732,1722437451697,-150.0,0.0001098,2]
[333746734,1722437451707,-5125.0,0.0001098,2]
[333746736,1722437451716,-1670.0,0.0001098,2]
[333746738,1722437451725,-150.0,0.0001098,2]
[333746740,1722437451735,-1203.0,0.0001098,2]
[333746742,1722437451744,-150.0,0.0001098,2]
[333746744,1722437451753,-150.0,0.0001098,2]
[333746746,1722437451762,-162.737,0.0001098,2]
[333746747,1722437451771,-1074.0,0.0001098,2]
[333746749,1722437451781,-500.0,0.00010982,2]
[333746751,1722437451790,-2601.44035,0.00010986,2]
[333746753,1722437451799,-2507.754581,0.00010986,2]
[333746755,1722437451808,-156.604159,0.00010986,2]
[333746757,1722437451818,-204.979458,0.00010986,2]
[333746759,1722437451827,-867.04223677,0.00010986,2]
[333746761,1722437451837,-242.42948031,0.00010986,2]
[333746763,1722437451847,-167.20157368,0.00010986,2]
[333746765,1722437451856,-384.0101415,0.00010986,2]
[333746767,1722437451866,-271.91658534,0.00010986,2]
[333746769,1722437451875,-189.36837994,0.00010986,2]
[333746771,1722437451884,-186.48280904,0.00010986,2]
[333746773,1722437451894,-251.49108059,0.00010986,2]
[333746775,1722437451905,-217.59260437,0.00010986,2]
[333746777,1722437451914,-154.05548035,0.00010986,2]
[333746779,1722437451924,-161.71444687,0.00010986,2]
[333746781,1722437451933,-215.4614389,0.00010986,2]
[333746783,1722437451943,-150.0,0.00010986,2]
[333746785,1722437451952,-2256.1390972,0.00010997,2]
[333746787,1722437451962,-1849.7143505,0.00010997,2]
[333746789,1722437451972,-7278.2731327,0.00010997,2]
[333746791,1722437451981,-761.52081185,0.00010997,2]
[333746793,1722437451991,-60489.5133389,0.00010998,2]
[333746795,1722437452000,-2000.0,0.00010999,2]
[333746797,1722437452009,-737.98964315,0.00010999,3]
[333746799,1722437452019,-167.6594161,0.00010999,2]
[333746800,1722437452028,-5948.9114798,0.00010999,2]
[333746802,1722437452038,-279.3922112,0.00010999,2]
[333746804,1722437452047,-150.0,0.00010999,2]
[333746806,1722437452057,-178156.47743161,0.00011,2]
[333746937,1722437921921,255.1,0.0001337,30]
[333746952,1722438564222,10852.97736929,0.00027,120]
[333746969,1722438633199,-440.42,8.219e-05,2]
[333746971,1722438633210,-187.43,9.19e-05,2]
[333746973,1722438633220,-1165.18,9.511e-05,2]
[333746974,1722438633230,-2249.6,9.72e-05,2]
[333746975,1722438633240,-1604.95955685,9.732e-05,2]
[333746976,1722438633252,-395.04044315,9.732e-05,2]
[333746977,1722438633262,-369.6,9.743e-05,2]
[333746978,1722438633272,-192.51,9.759e-05,2]
[333746979,1722438633283,-1961.68,9.766e-05,2]
[333746980,1722438633293,-250.0,9.808e-05,2]
[333746981,1722438633303,-300.0,9.809e-05,2]
[333746982,1722438633313,-150.0,9.809e-05,2]
[333746983,1722438633322,-300.0,9.809e-05,2]
[333746984,1722438633332,-16600.99,9.81e-05,2]
[333746985,1722438633342,-8765.68,9.81e-05,2]
[333746986,1722438633351,-630.4,9.832e-05,2]
[333746987,1722438633361,-999.99,9.867e-05,2]
[333746988,1722438633372,-150.0,9.888e-05,2]
[333746989,1722438633382,-150.0,9.888e-05,2]
[333746990,1722438633393,-150.0,9.888e-05,2]
[333746991,1722438633402,-150.0,9.888e-05,2]
[333746992,1722438633413,-150.0,9.888e-05,2]
[333746993,1722438633423,-150.0,9.888e-05,2]
[333746994,1722438633433,-150.0,9.888e-05,2]
[333746995,1722438633443,-150.0,9.888e-05,2]
[333746996,1722438633453,-150.0,9.888e-05,2]
[333746997,1722438633462,-150.0,9.888e-05,2]
[333746998,1722438633473,-239.87439934,9.888e-05,2]
[333746999,1722438633483,-230.0229,9.9e-05,2]
[333747000,1722438633493,-150.0,9.905e-05,2]
[333747001,1722438633503,-150.0,9.908e-05,2]
[333747002,1722438633514,-150.0,9.909e-05,2]
[333747003,1722438633528,-150.0,9.923e-05,2]
[333747004,1722438633539,-150.0,9.928e-05,2]
[333747005,1722438633549,-150.0,9.928e-05,2]
[333747006,1722438633559,-150.0,9.93e-05,2]
[333747007,1722438633569,-150.0,9.941e-05,2]
[333747008,1722438633578,-150.0,9.949e-05,2]
[333747009,1722438633588,-150.0,9.951e-05,2]
[333747010,1722438633598,-160.0,9.952e-05,2]
[333747011,1722438633609,-150.0,9.959e-05,2]
[333747012,1722438633620,-150.0,9.969e-05,2]
[333747013,1722438633631,-150.0,9.969e-05,2]
[333747014,1722438633640,-150.0,9.972e-05,2]
[333747015,1722438633650,-150.0,9.976e-05,2]
[333747016,1722438633664,-150.0,9.989e-05,2]
[333747017,1722438633675,-150.0,9.993e-05,2]
[333747018,1722438633684,-150.0,9.994e-05,2]
[333747019,1722438633695,-371.5992053,0.0001,2]
[333747020,1722438633704,-1250.0,0.0001,2]
[333747021,1722438633715,-150.0,0.0001001,2]
[333747022,1722438633725,-150.0,0.0001001,2]
[333747023,1722438633735,-150.0,0.00010012,2]
[333747024,1722438633745,-150.0,0.00010014,2]
[333747025,1722438633755,-150.0,0.00010029,2]
[333747026,1722438633764,-150.0,0.0001003,2]
[333747027,1722438633774,-150.0,0.00010036,2]
[333747028,1722438633783,-150.0,0.00010045,2]
[333747029,1722438633793,-150.0,0.00010047,2]
[333747030,1722438633803,-150.0,0.0001005,2]
[333747031,1722438633813,-150.0,0.0001005,2]
[333747032,1722438633823,-150.0,0.00010057,2]
[333747033,1722438633833,-150.0,0.00010065,2]
[333747034,1722438633844,-150.0,0.00010071,2]
[333747035,1722438633855,-150.0,0.00010083,2]
[333747036,1722438633865,-150.0,0.00010091,2]
[333747037,1722438633883,-150.0,0.00010091,2]
[333747038,1722438633893,-150.0,0.000101,2]
[333747039,1722438633904,-150.0,0.00010111,2]
[333747040,1722438633915,-150.0,0.00010118,2]
[333747041,1722438633925,-150.0,0.00010132,2]
[333747042,1722438633936,-150.0,0.00010132,2]
[333747043,1722438633947,-150.0,0.00010136,2]
[333747044,1722438633958,-150.0,0.00010152,2]
[333747045,1722438633968,-150.0,0.00010153,2]
[333747046,1722438633979,-150.0,0.00010171,2]
[333747047,1722438633990,-150.0,0.00010173,2]
[333747048,1722438634001,-150.0,0.00010173,2]
[333747049,1722438634012,-150.0,0.00010189,2]
[333747050,1722438634022,-150.0,0.00010193,2]
[333747051,1722438634032,-150.0,0.00010202,2]
[333747052,1722438634043,-150.0,0.00010207,2]
[333747053,1722438634054,-425.8,0.00010208,2]
[333747054,1722438634065,-425.56,0.00010208,2]
[333747055,1722438634076,-150.0,0.00010213,2]
[333747056,1722438634088,-150.0,0.00010213,2]
[333747057,1722438634098,-150.0,0.00010224,2]
[333747058,1722438634109,-150.0,0.00010234,2]
[333747059,1722438634123,-150.0,0.00010242,2]
[333747060,1722438634137,-150.0,0.00010254,2]
[333747061,1722438634149,-150.0,0.00010254,2]
[333747062,1722438634160,-150.0,0.0001026,2]
[333747063,1722438634172,-365.74,0.00010264,2]
[333747064,1722438634183,-150.0,0.00010274,2]
[333747065,1722438634195,-150.0,0.00010278,2]
[333747066,1722438634206,-150.0,0.00010295,2]
[333747067,1722438634217,-150.0,0.00010295,2]
[333747068,1722438634228,-150.0,0.00010295,2]
[333747069,1722438634239,-150.0,0.00010313,2]
[333747070,1722438634250,-150.0,0.00010315,2]
[333747071,1722438634260,-150.0,0.00010331,2]
[333747072,1722438634271,-150.0,0.00010335,2]
[333747073,1722438634282,-150.0,0.00010335,2]
[333747074,1722438634293,-150.0,0.00010348,2]
[333747075,1722438634304,-150.0,0.00010356,2]
[333747076,1722438634314,-150.0,0.00010359,2]
[333747077,1722438634324,-150.0,0.00010366,2]
[333747078,1722438634334,-150.0,0.00010376,2]
[333747079,1722438634344,-150.0,0.00010376,2]
[333747080,1722438634353,-150.0,0.00010384,2]
[333747081,1722438634363,-150.0,0.00010396,2]
[333747082,1722438634379,-150.0,0.00010402,2]
[333747083,1722438634388,-365.74,0.00010409,2]
[333747084,1722438634398,-150.0,0.00010417,2]
[333747085,1722438634408,-150.0,0.00010417,2]
[333747086,1722438634418,-150.0,0.00010419,2]
[333747087,1722438634428,-150.0,0.00010437,2]
[333747088,1722438634438,-150.0,0.00010437,2]
[333747089,1722438634448,-150.0,0.00010455,2]
[333747090,1722438634459,-150.0,0.00010457,2]
[333747091,1722438634468,-150.0,0.00010457,2]
[333747092,1722438634478,-520.28807,0.00010463,2]
[333747093,1722438634489,-501.550916,0.00010463,2]
[333747094,1722438634499,-440.42,0.00010466,2]
[333747095,1722438634509,-150.0,0.00010472,2]
[333747096,1722438634522,-150.0,0.00010478,2]
[333747097,1722438634536,-365.74,0.00010488,2]
[333747098,1722438634546,-150.0,0.0001049,2]
[333747099,1722438634556,-150.0,0.00010498,2]
[333747100,1722438634568,-150.0,0.00010498,2]
[333747101,1722438634578,-150.0,0.00010508,2]
[333747102,1722438634587,-150.0,0.00010515,2]
[333747103,1722438634597,-150.0,0.00010518,2]
[333747104,1722438634606,-150.0,0.00010526,2]
[333747105,1722438634617,-150.0,0.00010539,2]
[333747106,1722438634631,-150.0,0.00010539,2]
[333747107,1722438634641,-150.0,0.00010543,2]
[333747108,1722438634651,-150.0,0.00010559,2]
[333747109,1722438634660,-150.0,0.00010561,2]
[333747110,1722438634670,-365.74,0.00010577,2]
[333747111,1722438634680,-365.74,0.00010577,2]
[333747112,1722438634691,-365.74,0.00010577,2]
[333747113,1722438634701,-365.74,0.00010577,2]
[333747114,1722438634710,-365.74,0.00010577,2]
[333747115,1722438634720,-365.74,0.00010577,2]
[333747116,1722438634730,-150.0,0.00010579,2]
[333747117,1722438634740,-150.0,0.00010579,2]
[333747118,1722438634749,-150.0,0.00010579,2]
[333747119,1722438634759,-13068.33406621,0.00010587,2]
[333747120,1722438634803,-553.0,0.00010587,2]
[333747121,1722438634814,-825.77885809,0.00010587,2]
[333747122,1722438634826,-3214.1723757,0.00010587,2]
[333747123,1722438634836,-520.28807,0.00010593,2]
[333747124,1722438634845,-501.550916,0.00010593,2]
[333747125,1722438634854,-150.0,0.00010596,2]
[333747126,1722438634864,-150.0,0.000106,2]
[333747127,1722438634876,-150.0,0.00010614,2]
[333747128,1722438634886,-150.0,0.0001062,2]
[333747129,1722438634895,-150.0,0.0001062,2]
[333747130,1722438634904,-365.74,0.00010631,2]
[333747131,1722438634914,-150.0,0.00010632,2]
[333747132,1722438634923,-150.0,0.0001064,2]
[333747133,1722438634933,-150.0,0.0001065,2]
[333747134,1722438634942,-150.0,0.00010661,2]
[333747135,1722438634952,-150.0,0.00010661,2]
[333747136,1722438634962,-150.0,0.00010667,2]
[333747137,1722438634971,-150.0,0.00010672,2]
[333747138,1722438634981,-150.0,0.00010681,2]
[333747139,1722438634991,-150.0,0.00010685,2]
[333747140,1722438635000,-150.0,0.00010701,2]
[333747141,1722438635010,-150.0,0.00010701,2]
[333747142,1722438635019,-150.0,0.00010703,2]
[333747143,1722438635029,-365.74,0.00010714,2]
[333747144,1722438635039,-150.0,0.00010721,2]
[333747145,1722438635048,-150.0,0.00010722,2]
[333747146,1722438635058,-187.43,0.00010722,2]
[333747147,1722438635067,-520.28807,0.00010724,2]
[333747148,1722438635077,-501.550916,0.00010724,2]
[333747149,1722438635086,-150.0,0.00010738,2]
[333747150,1722438635095,-150.0,0.00010742,2]
[333747151,1722438635105,-150.0,0.00010742,2]
[333747152,1722438635115,-150.0,0.00010756,2]
[333747153,1722438635127,-150.0,0.00010763,2]
[333747154,1722438635136,-150.0,0.00010774,2]
[333747155,1722438635145,-59.95280861,0.00010781,2]
[333747176,1722438638979,-1039.04719139,0.00010781,2]
[333747177,1722438638990,-365.74,0.00010782,2]
[333747178,1722438639000,-150.0,0.00010783,2]
[333747179,1722438639010,-150.0,0.00010783,2]
[333747180,1722438639020,-255.0,0.00010789,2]
[333747181,1722438639030,-420.0,0.00010789,2]
[333747182,1722438639039,-150.0,0.00010791,2]
[333747183,1722438639049,-1146.7464,0.00010799,2]
[333747184,1722438639059,-150.0,0.00010803,2]
[333747185,1722438639068,-150.0,0.00010809,2]
[333747186,1722438639078,-150.0,0.00010824,2]
[333747187,1722438639089,-150.0,0.00010824,2]
[333747188,1722438639099,-150.0,0.00010827,2]
[333747189,1722438639109,-150.0,0.00010829,2]
[333747190,1722438639119,-150.0,0.00010844,2]
[333747191,1722438639129,-150.0,0.00010845,2]
[333747192,1722438639138,-520.28807,0.00010855,2]
[333747193,1722438639148,-501.550916,0.00010855,2]
[333747194,1722438639157,-150.0,0.00010862,2]
[333747195,1722438639167,-150.0,0.00010864,2]
[333747196,1722438639177,-150.0,0.00010864,2]
[333747197,1722438639187,-365.74,0.00010875,2]
[333747198,1722438639200,-150.0,0.0001088,2]
[333747199,1722438639210,-150.0,0.00010885,2]
[333747200,1722438639219,-365.74,0.0001089,2]
[333747201,1722438639229,-150.0,0.00010898,2]
[333747202,1722438639239,-187.51448874,0.00010899,2]
[333747203,1722438639249,-175.8051,0.000109,2]
[333747204,1722438639259,-2500.0,0.000109,2]
[333747205,1722438639269,-2000.0,0.000109,2]
[333747206,1722438639279,-187.51448873,0.000109,2]
[333747207,1722438639289,-365.74,0.00010902,2]
[333747208,1722438639299,-150.0,0.00010905,2]
[333747209,1722438639309,-150.0,0.00010905,2]
[333747210,1722438639319,-500.0,0.00010912,2]
[333747211,1722438639330,-150.0,0.00010915,2]
[333747212,1722438639340,-500.0,0.00010921,2]
[333747213,1722438639355,-150.0,0.00010925,2]
[333747214,1722438639365,-500.0,0.0001093,2]
[333747215,1722438639377,-150.0,0.00010933,2]
[333747216,1722438639387,-500.0,0.00010938,2]
[333747217,1722438639397,-365.74,0.00010941,2]
[333747218,1722438639406,-150.0,0.00010946,2]
[333747219,1722438639416,-150.0,0.00010946,2]
[333747220,1722438639426,-500.0,0.00010947,2]
[333747221,1722438639441,-150.0,0.00010951,2]
[333747222,1722438639450,-500.0,0.00010956,2]
[333747223,1722438639460,-200.0,0.00010959,2]
[333747224,1722438639470,-150.0,0.00010959,2]
[333747225,1722438639480,-250.0,0.00010959,2]
[333747226,1722438639490,-365.74,0.0001096,2]
[333747227,1722438639499,-369.6,0.00010961,2]
[333747228,1722438639510,-500.0,0.00010965,2]
[333747229,1722438639522,-150.0,0.00010966,2]
[333747230,1722438639533,-150.0,0.00010969,2]
[333747231,1722438639543,-365.74,0.0001097,2]
[333747232,1722438639553,-365.74,0.0001097,2]
[333747233,1722438639563,-365.74,0.0001097,2]
[333747234,1722438639573,-365.74,0.0001097,2]
[333747235,1722438639582,-500.0,0.00010974,2]
[333747246,1722438639591,-365.74,0.00010976,2]
[333747247,1722438639931,-365.74,0.0001098,2]
[333747248,1722438639941,-192.242,0.0001098,2]
[333747249,1722438639950,-150.0,0.0001098,2]
[333747250,1722438639960,-150.392,0.0001098,2]
[333747251,1722438639969,-1925.0,0.0001098,2]
[333747252,1722438639979,-495.41934518,0.0001098,2]
[333747253,1722438639991,-332.21814,0.0001098,2]
[333747254,1722438640003,-540.65357155,0.0001098,2]
[333747255,1722438640015,-207.32094327,0.0001098,2]
[333747256,1722438640026,-621.0,0.0001098,2]
[333747257,1722438640035,-337.463,0.0001098,2]
[333747258,1722438640045,-450.0,0.0001098,2]
[333747259,1722438640054,-982.699,0.0001098,2]
[333747260,1722438640064,-1333.651,0.0001098,2]
[333747261,1722438640073,-1370.0,0.0001098,2]
[333747262,1722438640083,-1957.861,0.0001098,2]
[333747263,1722438640093,-1670.0,0.0001098,2]
[333747264,1722438640103,-317.561,0.0001098,2]
[333747265,1722438640113,-9716.35905673,0.0001098,2]
[333747266,1722438640127,-675.71323632,0.0001098,2]
[333747267,1722438640139,-762.69359376,0.0001098,2]
[333747268,1722438640151,-27237.23411319,0.0001098,2]
[333747269,1722438640160,-320.348,0.0001098,2]
[333747270,1722438640170,-365.74,0.0001098,2]
[333747271,1722438640179,-365.74,0.0001098,2]
[333747272,1722438640189,-365.74,0.0001098,2]
[333747273,1722438640198,-365.74,0.0001098,2]
[333747274,1722438640208,-365.74,0.0001098,2]
[333747275,1722438640217,-365.74,0.0001098,2]
[333747276,1722438640228,-365.74,0.0001098,2]
[333747277,1722438640237,-365.74,0.0001098,2]
[333747278,1722438640246,-365.74,0.00010981,2]
[333747279,1722438640255,-500.0,0.00010982,2]
[333747280,1722438640265,-200.0,0.00010984,2]
[333747281,1722438640276,-200.0,0.00010984,2]
[333747282,1722438640286,-520.28807,0.00010986,2]
[333747283,1722438640295,-501.550916,0.00010986,2]
[333747284,1722438640305,-237.46460514,0.00010986,2]
[333747286,1722438640315,-204.83203768,0.00010986,2]
[333747288,1722438640324,-174.11155657,0.00010986,2]
[333747290,1722438640334,-150.0,0.00010986,2]
[333747292,1722438640344,-150.0,0.00010986,2]
[333747294,1722438640353,-150.0,0.00010986,2]
[333747296,1722438640364,-365.74,0.00010989,2]
[333747298,1722438640376,-365.74,0.0001099,2]
[333747300,1722438640385,-365.74,0.0001099,2]
[333747302,1722438640395,-365.74,0.0001099,2]
[333747304,1722438640405,-365.74,0.0001099,2]
[333747306,1722438640414,-365.74,0.0001099,2]
[333747308,1722438640424,-365.74,0.0001099,2]
[333747310,1722438640433,-365.74,0.0001099,2]
[333747312,1722438640443,-365.74,0.0001099,2]
[333747314,1722438640453,-365.74,0.0001099,2]
[333747316,1722438640463,-365.74,0.0001099,2]
[333747318,1722438640473,-365.74,0.0001099,2]
[333747320,1722438640483,-365.74,0.0001099,2]
[333747322,1722438640492,-365.74,0.0001099,2]
[333747324,1722438640502,-24327.74658109,0.0001099,2]
[333747326,1722438640512,-500.0,0.00010991,2]
[333747328,1722438640523,-150.01,0.00010999,2]
[333747330,1722438640535,-2880.28384127,0.00010999,2]
[333747332,1722438640544,-6392.29214215,0.00011,2]
[333747421,1722438641443,-365.74,0.0001099,2]
[333747423,1722438641453,-365.74,0.0001099,2]
[333747425,1722438641463,-365.74,0.0001099,2]
[333747427,1722438641472,-365.74,0.0001099,2]
[333747429,1722438641482,-6851.39125342,0.00010997,2]
[333747431,1722438641493,-819.45729106,0.00010997,2]
[333747433,1722438641504,-361.99576341,0.00010997,2]
[333747435,1722438641516,-1425.99637496,0.00010997,2]
[333747437,1722438641531,-270.84,0.00010997,2]
[333747441,1722438641555,-1963.25914205,0.00010997,2]
[333747443,1722438641567,-956.43654615,0.00010997,2]
[333747445,1722438641576,-9109.73788845,0.00011,2]
[333747447,1722438641587,-2319.29600018,0.00011,2]
[333747449,1722438641599,-1407.45396258,0.00011,2]
[333747451,1722438641611,-16012.5,0.00011,2]
[333747453,1722438641625,-293.04699676,0.00011,2]
[333747455,1722438641636,-1249.74849996,0.00011,2]
[333747457,1722438641648,-46808.33822895,0.00011,2]
[333747459,1722438641660,-5497.23532621,0.00011,2]
[333747464,1722438641696,-46426.8855477,0.00011,2]
[333747466,1722438641707,-346.25,0.00011,2]
[333747469,1722438641720,-261.27972236,0.00011,2]
[333747471,1722438641733,-5873.89872731,0.00011,2]
[333747473,1722438641744,-704.38948625,0.00011,2]
[333747475,1722438641755,-251.624732,0.00011,2]
[333747478,1722438641767,-302.76800001,0.00011,2]
[333747480,1722438641783,-566.18888113,0.00011,2]
[333747482,1722438641794,-347804.86843421,0.00011,2]
[333747484,1722438641805,-1519.37784685,0.00011,2]
[333747486,1722438641817,-3569.6177846,0.00011,2]
[333747489,1722438641828,-3906.81954123,0.00011,2]
[333747560,1722438643070,-10474.52458731,0.00011,2]
[333747561,1722438643082,-13815.19568082,0.00011,2]
[333747562,1722438643093,-704.09202264,0.00011,2]
[333747563,1722438643105,-1670.0339732,0.00011,2]
[333747564,1722438643116,-1728.75988879,0.00011,2]
[333747565,1722438643175,-77286.4472019,0.00011,2]
[333747566,1722438643185,-25052.91525205,0.00011,2]
[333747567,1722438643196,-1752.67954229,0.00011,2]
[333747568,1722438643208,-98018.01635301,0.00011,2]
[333747569,1722438643219,-53005.6,0.00011,2]
[333747570,1722438643230,-4112.61326764,0.00011,2]
[333747571,1722438643243,-10282.98649999,0.00011,2]
[333747572,1722438643254,-2051.96602235,0.00011,2]
[333747573,1722438643276,-23802.92957847,0.00011,2]
[333747574,1722438643288,-651.33802245,0.00011,2]
[333747575,1722438643390,-6855.90067227,0.00011,2]
[333747576,1722438643402,-20439.95268357,0.00011,2]
[333747622,1722438645950,-185.30883219,0.00010999,2]
[333747624,1722438645961,-790.92648135,0.00011,2]
[333747626,1722438645972,-1218.62654909,0.00011,2]
[333747629,1722438645983,-1644.15644672,0.00011,2]
[333747631,1722438645996,-2210.0,0.00011,2]
[333747639,1722438646062,-3187.19048631,0.00011,2]
[333747641,1722438646074,-1331.13658926,0.00011,2]
[333747644,1722438646086,-920.11067912,0.00011,2]
[333747646,1722438646097,-25600.61538751,0.00011,2]
[333747655,1722438646183,-6223.91249305,0.00011,2]
[333747658,1722438646195,-1657.25362323,0.00011,2]
[333747660,1722438646206,-1149.49488646,0.00011,2]
[333747662,1722438646218,-739.79148217,0.00011,2]
[333747664,1722438646229,-3353.83109984,0.00011,2]
[333747666,1722438646240,-20537.74473871,0.00011,2]
[333747669,1722438646252,-3320.37022012,0.00011,2]
[333747671,1722438646263,-2996.09277,0.00011,2]
[333747673,1722438646275,-1384.71,0.00011,2]
[333747675,1722438646286,-1501.02251226,0.00011,2]
[333747678,1722438646309,-580.23278742,0.00011,2]
[333747681,1722438646320,-264.419,0.00011,2]
[333747683,1722438646332,-584.40653597,0.00011,2]
[333747685,1722438646343,-1780.43176568,0.00011,2]
[333747687,1722438646354,-950.81443091,0.00011,2]
[333747745,1722438676493,233.84,0.0001337,30]
[333747752,1722439181414,214.35,0.0001337,30]
[333747753,1722439541389,870.85789063,0.00027,120]
[333747767,1722439759198,196.48,0.0001337,30]
[333747796,1722439832035,-315.04,8.219e-05,2]
[333747798,1722439832047,-147.69,8.219e-05,2]
[333747800,1722439832056,-1332.62691746,9.452e-05,2]
[333747803,1722439832067,-1550.07308254,9.452e-05,2]
[333747805,1722439832077,-160.01,9.452e-05,2]
[333747807,1722439832088,-778.24,9.597e-05,2]
[333747809,1722439832097,-250.0,9.626e-05,2]
[333747811,1722439832106,-197.02,9.63e-05,2]
[333747813,1722439832116,-300.0,9.633e-05,2]
[333747815,1722439832125,-1682.67,9.635e-05,2]
[333747817,1722439832134,-221.76,9.64e-05,2]
[333747818,1722439832144,-150.0,9.888e-05,2]
[333747819,1722439832153,-150.0,9.913e-05,2]
[333747820,1722439832162,-150.0,9.939e-05,2]
[333747821,1722439832171,-150.0,9.964e-05,2]
[333747822,1722439832180,-150.0,9.99e-05,2]
[333747823,1722439832190,-420.03,0.0001,2]
[333747824,1722439832199,-2946.90647913,0.0001,2]
[333747825,1722439832209,-150.0,0.00010015,2]
[333747826,1722439832220,-150.0,0.00010041,2]
[333747827,1722439832229,-150.0,0.00010067,2]
[333747828,1722439832238,-150.0,0.00010092,2]